Cogmind - Beta 16.1 @@@ ROGUE MODE // 2026.01.10 @ 14:01:44 Player: f3-rnm Result: Destroyed by Y-72 Warden with Quantum Rifle Performance ------------- Evolutions (8) 4000 Regions Visited (17) 3400 Robots Destroyed (179) 895 Value Destroyed (11342) 11342 Prototype IDs (64) 1280 Alien Tech Used (5) 1000 Bonus (13615) 13615 TOTAL SCORE: 35532 Bonus ------- High Alert Combat Kills 1541 Follower Combat Kills 3661 Registered with UFD 300 Met Optimus in HQ 500 Met Zhirov 300 Met Warlord at Base 500 MAIN.C Attacked Warlord 500 Warlord Defense Kills 3576 Used Core Reset Matrix 3000 Friendly Fire -263 Cogmind --------- Core Integrity 0/1450 Matter 148/300 Energy 99/100 System Corruption 8% Temperature Cool (9) Movement Core (50) Location -2/Research Parts ------- > --- POWER (3) -------- (None) > --- PROPULSION (6) --- (None) > --- UTILITY (10) ----- (None) > --- WEAPON (4) ------- (None) > --- INVENTORY (5) ---- Long-range Tractor Beam Core Stripper Botcube Peak State ------------ > --- POWER ------------ Light Antimatter Reactor Particle Reactor Improved Quantum Reactor > --- PROPULSION ------- Advanced Medium Treads Advanced Medium Treads Advanced Medium Treads Advanced Medium Treads Armored Heavy Treads > --- UTILITY ---------- Advanced Cooling System High-capacity Storage Unit Advanced Energy Well Enhanced Optical Array Targeting Computer Experimental Target Analyzer Advanced Transmission Jammer Centrium Medium Armor Plating Centrium Medium Armor Plating Centrium Medium Armor Plating > --- WEAPON ----------- Hypercooled Linear Accelerator Hypercooled Linear Accelerator Sigix Broadsword > --- INVENTORY -------- Light Antimatter Reactor Quantum Reactor Advanced Medium Treads Advanced Medium Treads Advanced Medium Treads Experimental Coolant Injector Experimental Matter Compressor Experimental Matter Compressor Long-range Tractor Beam Terrabomb Hypercooled Linear Accelerator Hypercooled Linear Accelerator Hypercooled Linear Accelerator Gamma Bomb Array Improved Plasma Cutter Multitool Core Stripper [Rating: 196] Favorites ----------- Power Makeshift Power Source Engine Makeshift Power Source Power Core Neutrino Core Reactor Light Antimatter Reactor Propulsion Flexi-carbon Leg Treads Advanced Medium Treads Leg Flexi-carbon Leg Wheel Subdweller Monowheel Hover Unit Antigrav System Flight Unit Cooled Cesium-ion Thruster Utility Large Storage Unit Device Advanced Transmission Jammer Storage Large Storage Unit Processor Enhanced Optical Array Hackware Makeshift Hacking Suite Protection Centrium Medium Armor Plating Weapon Overtuned Coil Gun Energy Gun Gamma Rifle Energy Cannon Cooled Plasma Cannon Ballistic Gun Overtuned Coil Gun Ballistic Cannon Hypercooled Linear Accelerator Launcher Gamma Bomb Array Special Weapon Improved Plasma Cutter Impact Weapon Great Maul Slashing Weapon Sigix Broadsword Build | -11 -10 -10 -8 -6 -5 -5 -5 -5 -4 -4 -4 -4 -4 -3 -3 -3 -2 ------- Run | Yrd Mat Sub Scr Fac Fac Upp Upp Zhi Pro Fac Upp Upp War Pro Res Qua Res Slots Evolved 16 | . . . . 8 2 . . . . 2 . . . . 2 . 2 Power 2 | . . . . . . . . . . 1 . . . . . . 1 Propulsion 4 | . . . . 2 1 . . . . 1 . . . . . . . Utility 8 | . . . . 4 1 . . . . . . . . . 2 . 1 Weapon 2 | . . . . 2 . . . . . . . . . . . . . Parts Attached 214 | 6 2 15 5 23 13 5 . 5 5 6 4 . 23 . 26 70 6 Power 27 | 1 . 1 . 1 2 . . . 1 3 . . 1 . 2 13 2 Engine 4 | 1 . 1 . 1 . . . . . 1 . . . . . . . Core 6 | . . . . . 2 . . . 1 . . . . . 1 2 . Reactor 17 | . . . . . . . . . . 2 . . 1 . 1 11 2 Propulsion 50 | 2 . 4 1 5 5 1 . . 2 . 2 . 8 . 5 15 . Treads 12 | 2 . . . . . . . . . . . . . . . 10 . Leg 29 | . . 2 1 1 4 1 . . 2 . 2 . 8 . 5 3 . Wheel 4 | . . 2 . 2 . . . . . . . . . . . . . Hover 4 | . . . . 1 1 . . . . . . . . . . 2 . Flight 1 | . . . . 1 . . . . . . . . . . . . . Utility 68 | 1 2 1 3 8 5 1 . 3 . 3 . . 8 . 10 20 3 Device 35 | . 1 1 2 4 3 1 . 1 . 2 . . 6 . 5 8 1 Storage 8 | 1 1 . . . . . . 1 . . . . 1 . 2 2 . Processor 9 | . . . . 2 1 . . . . . . . 1 . 2 2 1 Hackware 4 | . . . . 1 1 . . . . 1 . . . . 1 . . Protection 12 | . . . 1 1 . . . 1 . . . . . . . 8 1 Artifact . | . . . . . . . . . . . . . . . . . . Weapon 69 | 2 . 9 1 9 1 3 . 2 2 . 2 . 6 . 9 22 1 Energy Gun 24 | . . 4 . 1 . . . . . . . . 4 . 7 8 . Energy Cannon 9 | . . 1 . 3 1 1 . . . . . . . . 1 1 1 Ballistic Gun 12 | 2 . 2 . 1 . . . 2 2 . 1 . 1 . . 1 . Ballistic Cannon 11 | . . 1 . 1 . . . . . . . . . . 1 8 . Launcher 4 | . . 1 . . . 1 . . . . . . 1 . . 1 . Special Weapon 5 | . . . 1 . . 1 . . . . 1 . . . . 2 . Impact Weapon 2 | . . . . 2 . . . . . . . . . . . . . Slashing Weapon 2 | . . . . 1 . . . . . . . . . . . 1 . Piercing Weapon . | . . . . . . . . . . . . . . . . . . Special Melee Weapon . | . . . . . . . . . . . . . . . . . . Unidentified Prototypes 29 | . . . . 4 . . . 4 . . . . 7 . 3 11 . Corrupted Parts 27 | . . . . 1 . . . . . . . . . . 1 25 . System Corruption 155 | . . . . 6 . . . . . . . . . . 7 142 . Parts Lost 79 | . . 5 . 3 4 . . . . . . . 11 2 6 30 18 Power 12 | . . . . . . . . . . . . . . 1 . 6 5 Propulsion 28 | . . 4 . 2 2 . . . . . . . 2 1 3 8 6 Utility 20 | . . . . 1 2 . . . . . . . 3 . 2 8 4 Weapon 19 | . . 1 . . . . . . . . . . 6 . 1 8 3 Highest Loss Streak 9 | . . 2 . 2 2 . . . . . . . 9 2 5 6 8 To Critical Strikes 2 | . . . . . . . . . . . . . . 1 . 1 . Average Backups 13 | 1 4 12 11 13 14 13 13 13 13 13 12 13 13 12 14 17 14 Power . | . . . . . 1 2 2 1 1 . . . . 1 . 1 . Propulsion . | . 1 1 . 1 . 1 1 1 . . . . . 1 . 1 2 Utility 4 | . 1 3 1 3 4 4 4 5 7 7 7 9 7 6 7 7 4 Weapon 4 | . 1 6 6 5 5 3 4 2 2 3 2 1 1 . 1 4 4 Tool/Special . | . . . . . . . . . . . . . . . . . . Unused Backups 83 | . 1 5 23 2 4 1 . 1 3 1 14 . 6 . 4 12 6 Power 13 | . . . 5 1 1 . . . . 1 3 . . . 1 1 . Propulsion 11 | . 1 . 5 . . . . . 1 . 2 . . . 1 1 . Utility 40 | . . 2 9 1 1 1 . 1 1 . 5 . 5 . 1 8 5 Weapon 18 | . . 3 4 . 2 . . . . . 4 . 1 . 1 2 1 Tool/Special 1 | . . . . . . . . . 1 . . . . . . . . Average Slot Usage (%) 82 | . 95 99 66 79 97 97 94 81 94 89 80 94 89 90 95 76 83 Engine 5 | . 14 14 14 6 . . . . . 3 . . . . . . . Reactor 3 | . . . . . . . . . . 2 10 10 7 6 5 8 11 Treads 3 | . 28 4 . . . . . . . . . . . . . 7 18 Leg 17 | . . 17 23 8 19 29 29 29 29 26 22 31 30 31 26 8 . Wheel 2 | . . 5 4 5 2 . . . . . . . . . . . . Device 12 | . 10 14 9 15 21 17 17 16 17 14 15 15 14 15 18 10 7 Storage 9 | . 14 14 14 6 5 5 5 5 5 5 5 5 5 5 4 6 6 Processor 6 | . . . . . 5 11 11 11 11 10 10 10 10 10 15 12 15 Protection 1 | . . . . 5 . . . . . . . . . . . 5 6 Energy Gun 4 | . . 16 . 2 4 . . . . . . . . 21 17 5 . Energy Cannon 2 | . . 2 . 5 13 22 23 2 2 . . . . . . 1 1 Ballistic Gun 4 | . 28 4 . 1 3 . . 6 20 21 15 21 18 . . . . Ballistic Cannon 1 | . . 4 . 1 . . . . . . . . . . . 2 10 Peak Build Rating 196 | 7 8 25 21 61 81 81 79 80 87 98 99 99 119 111 151 183 196 Average Rating 75 | 5 7 20 17 42 77 79 79 64 86 94 86 99 105 106 124 140 162 On Entrance 75 | . 7 8 23 19 59 74 79 79 80 87 98 99 99 111 100 151 182 Avg Prop Armor Cover (%) 5 | . . 3 7 6 5 . . . . . . . . . . 4 . Naked Turns 63 | . . . . . . . . . . . . . . . . . 63 Heaviest Build 174 | 14 30 37 26 62 75 77 73 73 70 74 71 71 85 74 98 136 174 Greatest Support 180 | 40 40 40 35 35 95 95 95 95 110 110 125 125 145 140 162 180 180 Greatest Overweight (x) 36 | . . 10 1 6 3 . . . . . . . . . . 36 1 Average Overweight (x) . | . . . . 3 . . . . . . . . . . . . . Largest Inventory Capacity 20 | 8 15 15 15 15 15 15 15 15 15 15 15 15 15 15 20 20 20 Average Capacity 16 | 7 11 15 15 15 15 15 15 15 15 15 15 15 15 15 16 20 18 Most Carried 20 | 3 8 15 15 15 15 15 15 15 15 15 15 14 15 15 20 20 20 Average Carried 14 | 2 5 13 12 13 14 14 15 14 14 14 13 14 14 14 16 18 16 Final Capacity 20 | 8 15 15 15 15 15 15 15 15 15 15 15 15 15 15 20 20 5 Final Carried 20 | 3 8 15 15 15 15 15 15 15 15 15 14 14 15 15 20 20 4 Scrap Suit Usage (%) 1 | . . . . . . 10 2 . . 21 5 . 7 . . . . Parts Cannibalized 5 | . . . . . . 1 . . . . . . 4 . . . . Class Distribution -------------------- 28% | Scavenger-Mutant 22% | Scavenger-Gunner 22% | Mutant 8% | Scavenger-Scrapper 8% | Derelict-Mutant 7% | Scavenger-Tank Dominant Class ---------------- Mutant | -10/Materials Derelict-Mutant | -10/Subcaves Mutant | -8/Scraptown Derelict-Mutant | -6/Factory Scavenger-Tank | -5/Factory Scavenger-Gunner | -5/Upper Caves Scavenger-Gunner | -5/Upper Caves Scavenger-Mutant | -5/Zhirov Scavenger-Scrapper | -4/Proximity Caves Scavenger-Scrapper | -4/Factory Scavenger-Gunner | -4/Upper Caves Scavenger-Scrapper | -4/Upper Caves Scavenger-Scrapper | -4/Warlord Scavenger-Gunner | -3/Proximity Caves Scavenger-Gunner | -3/Research Scavenger-Mutant | -3/Quarantine Scavenger-Tank | -2/Research Resources | -11 -10 -10 -8 -6 -5 -5 -5 -5 -4 -4 -4 -4 -4 -3 -3 -3 -2 ----------- Run | Yrd Mat Sub Scr Fac Fac Upp Upp Zhi Pro Fac Upp Upp War Pro Res Qua Res Matter Collected 10478 | 147 147 964 293 294 166 130 . . 210 136 690 58 1581 30 436 2851 2345 Remotely 635 | . . . . . . . . . . . . . . . . . 635 Salvage Created 10091 | . 212 655 . 660 60 271 265 . 307 289 325 53 1366 66 956 2434 2172 Parts 468 | . 18 38 . 23 . 11 9 . 9 13 29 4 51 . 48 134 81 Haulers Intercepted 5 | . 1 . . 2 . . . . . . . . . . 1 1 . Recyclers Shooed 6 | . 2 . . . . . . . . . . . . . 2 . 2 Parts Field Recycled . | . . . . . . . . . . . . . . . . . . Retrieved Matter . | . . . . . . . . . . . . . . . . . . Parts Self-Destructed 77 | . . 7 . . . 16 13 . 9 . 25 7 . . . . . Prevented 6 | . . . . . . . . . . . 3 3 . . . . . Parts Restored . | . . . . . . . . . . . . . . . . . . Kills | -11 -10 -10 -8 -6 -5 -5 -5 -5 -4 -4 -4 -4 -4 -3 -3 -3 -2 ------- Run | Yrd Mat Sub Scr Fac Fac Upp Upp Zhi Pro Fac Upp Upp War Pro Res Qua Res Combat Hostiles Destroyed 144 | . 5 14 . 2 1 8 4 . 3 4 3 2 25 1 11 33 28 Guns 48 | . 5 8 . 1 . . . . 1 4 3 2 12 1 4 7 . Cannons 38 | . . 4 . 1 1 . 4 . 1 . . . . . 3 8 16 AOE 31 | . . 2 . . . 8 . . . . . . 13 . . 2 6 Classes Destroyed 21 | . 4 2 . 4 1 3 . . . . 1 . 4 1 . 1 . Worker 3 | . . . . 1 . . . . . . . . . . . . 2 Builder 12 | . . . . 1 . . . . . . . . . . 1 . 10 Hauler 5 | . 1 . . 2 . . . . . . . . . . 1 1 . Recycler 5 | . . . . 2 . . . . . . . . . . . . 3 Mechanic 1 | . . . . . . . . . . . . . . . 1 . . Operator 2 | . 1 . . . . . . . . . . . . . . 1 . Watcher 3 | . . . . . . . . . . . . . . . . 2 1 Swarmer 21 | . 3 1 . . . 4 . . . . . 2 . . 2 5 4 Grunt 42 | . 2 1 . 1 . . 3 . . . 1 . 20 . 1 2 11 Brawler 1 | . . . . . . 1 . . . . . . . . . . . Duelist 5 | . . . . . . 2 . . 2 . . . . . . . 1 Protector 1 | . . . . . . . . . . . . . 1 . . . . Sentry 12 | . . 1 . . . 1 1 . 1 2 . . . . 4 1 1 Specialist 3 | . . . . . . . . . . . . . 3 . . . . Hunter 15 | . . . . . . . . . . . . . . 1 . 7 7 Programmer 18 | . . . . . 1 . . . . 2 1 . . . 4 6 4 Behemoth 1 | . . . . 1 . . . . . . . . . . . . . Quarantine Guard 12 | . . . . . . . . . . . . . . . . 12 . Striker 1 | . . . . . . . . . . . . . 1 . . . . Subdweller 11 | . . 11 . . . . . . . . . . . . . . . Scrapoid 4 | . . . . . . 1 . . 1 . 2 . . . . . . Botcube 4 | . . . . . . . . . . . 2 . 1 . . 1 . Surgeon 1 | . . . . . . . . . . . . . 1 . . . . Best Kill Streak 11 | . 3 2 . 2 1 8 2 . 3 2 2 2 7 1 4 5 11 Combat Bots Only 8 | . 3 2 . 1 1 8 2 . 3 2 2 2 7 1 4 4 7 Max Kills in Single Turn 6 | . 1 2 . 1 1 4 2 . 1 1 1 1 6 1 2 2 3 Gunslinging 1 | . . . . . . . . . . . . . . . . 1 . Exploded 6 | . . 2 . . . 4 . . . . . . 6 . . 1 2 Melee . | . . . . . . . . . . . . . . . . . . Uniques/NPCs Destroyed . | . . . . . . . . . . . . . . . . . . Combat | -11 -10 -10 -8 -6 -5 -5 -5 -5 -4 -4 -4 -4 -4 -3 -3 -3 -2 -------- Run | Yrd Mat Sub Scr Fac Fac Upp Upp Zhi Pro Fac Upp Upp War Pro Res Qua Res Hostile Shots Fired 1201 | . 20 74 . 53 43 9 14 . 11 6 8 . 184 20 64 283 412 Missed 446 | . 4 28 . 14 19 6 4 . 4 1 3 . 70 11 22 113 147 Hits 755 | . 16 46 . 39 24 3 10 . 7 5 5 . 114 9 42 170 265 Melee 3 | . . . . . . . . . . . . . . . . . 3 Projectile 752 | . 16 46 . 39 24 3 10 . 7 5 5 . 114 9 42 170 262 AOE 1 | . . 1 . . . . . . . . . . . . . . . Critical Strikes 48 | . . . . 2 1 . 2 . 1 . . . 13 1 . 11 17 Part Disruptions 2 | . . . . . . . . . . . . . . . . 2 . Damage Taken 18768 | . 148 899 . 414 514 84 215 . 203 162 100 . 2722 187 1043 6060 6017 Core 2658 | . 28 155 . 55 56 15 20 . . . 34 . 152 23 117 535 1468 Absorbed by Shields . | . . . . . . . . . . . . . . . . . . Reduced by Siege Mode 67 | . . . . . . . . . . . . . . . . . 67 Redirected to Shielding 7 | . . . . . . . . . . . . . . . . 7 . Regen/Repaired (Parts) 495 | . . . . . 75 6 . . . . . . 65 . . 296 53 Core Remaining (%) 72 | 100 . . 26 93 . . . . 90 . . . . 81 . 44 . Volleys Fired 492 | . 23 101 2 11 13 9 4 . 5 14 25 3 53 3 44 115 67 Largest 4 | . 2 2 1 4 4 4 4 . 4 4 4 4 4 4 4 4 4 Hottest 338 | . 40 110 . 180 185 140 140 . 137 128 128 128 260 264 338 335 200 Shots Fired 1285 | . 45 181 2 41 45 21 16 . 20 53 83 12 174 12 113 273 194 Gun 766 | . 45 105 . 18 14 . . . 5 52 82 12 164 12 98 159 . Cannon 458 | . . 75 . 23 31 16 16 . 15 . . . . . 15 90 177 Launcher 55 | . . 1 . . . 3 . . . 1 . . 10 . . 23 17 Special 6 | . . . 2 . . 2 . . . . 1 . . . . 1 . Kinetic 699 | . 45 105 . 10 4 3 . . 5 53 82 12 173 . 6 40 161 Thermal 256 | . . 19 . 31 41 16 16 . 15 . . . 1 12 35 54 16 Explosive . | . . . . . . . . . . . . . . . . . . Electromagnetic 324 | . . 57 . . . . . . . . . . . . 72 178 17 Robot Hit Streak 20 | . 7 15 4 13 14 4 2 . 8 9 13 1 12 8 20 16 15 Robot Miss Streak 8 | . 6 3 . 2 5 1 2 . 3 3 3 2 8 2 8 5 5 Penetration Max 2 | . . . . . . . . . . . 1 . 2 . . . . Secondary Targets 14 | . 1 1 . . . . . . . . . . 8 1 1 2 . Max Gunslinging Chain 1 | . 1 1 . . . . . . . . . . 1 1 1 1 . Shots Hit Robots 678 | . 24 74 2 31 17 7 7 . 12 24 58 2 102 9 66 133 110 Core Hits 454 | . 11 31 . 12 5 27 7 . 6 7 16 2 112 3 29 84 102 Critical Kills 6 | . . . . 1 . . . . . . 1 . 3 . 1 . . Critical Parts Destroyed 11 | . . . . 3 . . . . . 1 3 . 4 . . . . Critical Strikes 52 | . . 1 . 4 . . . . . 2 5 . 8 1 4 4 23 Burn 1 | . . . . . . . . . . . . . . 1 . . . Meltdown 1 | . . . . . . . . . . . . . . . 1 . . Destroy 20 | . . 1 . 4 . . . . . 2 5 . 8 . . . . Blast 25 | . . . . . . . . . . . . . . . 2 . 23 Corrupt 5 | . . . . . . . . . . . . . . . 1 4 . Melee Attacks 12 | . . . . 6 . . . . . . . . . . . 3 3 Impact 2 | . . . . 2 . . . . . . . . . . . . . Slashing 10 | . . . . 4 . . . . . . . . . . . 3 3 Piercing . | . . . . . . . . . . . . . . . . . . Sneak Attacks 3 | . . . . 3 . . . . . . . . . . . . . Combat Hostiles . | . . . . . . . . . . . . . . . . . . Follow-up Attacks 2 | . . . . 2 . . . . . . . . . . . . . Damage Inflicted 28227 | . 350 1387 . 1086 634 868 279 . 523 659 1568 79 7335 166 1774 4680 6839 Guns 11188 | . 350 645 . 317 150 . . . 135 659 1568 79 3640 166 1275 2204 . Cannons 8838 | . . 617 . 475 484 144 279 . 388 . . . . . 499 1148 4804 Explosions 7701 | . . 125 . . . 724 . . . . . . 3695 . . 1328 1829 Melee 500 | . . . . 294 . . . . . . . . . . . . 206 Ramming . | . . . . . . . . . . . . . . . . . . Kinetic 16925 | . 350 797 . 109 69 724 . . 135 659 1568 79 7335 . 265 451 4384 Thermal 4359 | . . 214 . 683 565 144 279 . 388 . . . . 166 541 959 420 Explosive . | . . . . . . . . . . . . . . . . . . Electromagnetic 6443 | . . 376 . . . . . . . . . . . . 968 3270 1829 Impact 169 | . . . . 169 . . . . . . . . . . . . . Slashing 331 | . . . . 125 . . . . . . . . . . . . 206 Piercing . | . . . . . . . . . . . . . . . . . . Highest Corruption 90 | . 2 2 2 8 . . . . . . . . 1 1 7 90 8 Average Corruption 18 | . 2 2 2 2 . . . . . . . . 1 1 7 37 4 Corruption Purged . | . . . . . . . . . . . . . . . . . . Corruption Blocked 20 | . . . . . . . . . . . . . . . . 20 . Effects 320 | . 5 54 . 9 . . . . . . . . 2 1 3 234 12 Message Errors 49 | . 1 10 . 1 . . . . . . . . 1 . . 33 3 Matter Fused 92 | . 1 12 . 4 . . . . . . . . . . . 70 5 Heat Flow Errors 38 | . . 6 . 3 . . . . . . . . . . 2 26 1 Energy Discharges 38 | . . 8 . . . . . . . . . . . 1 1 28 . Parts Rejected 2 | . . . . . . . . . . . . . . . . 2 . Parts Fused 5 | . . . . 1 . . . . . . . . . . . 4 . Data Loss (minor) 37 | . 1 9 . . . . . . . . . . . . . 24 3 Data Loss (major) 22 | . 1 5 . . . . . . . . . . . . . 16 . Misfires 17 | . . 2 . . . . . . . . . . 1 . . 14 . Alerts 8 | . . 2 . . . . . . . . . . . . . 6 . Misdirections 3 | . . . . . . . . . . . . . . . . 3 . Weapon Failures 9 | . 1 . . . . . . . . . . . . . . 8 . Overload Shots . | . . . . . . . . . . . . . . . . . . Overflow Damage 604 | . . 6 . 126 27 39 . . . . . . 9 . 70 45 282 Projectiles 330 | . . 6 . . 27 . . . . . . . . . 70 31 196 Explosions 89 | . . . . . . 39 . . . . . . 9 . . 14 27 Melee 185 | . . . . 126 . . . . . . . . . . . . 59 Knockbacks 40 | . . 1 . 1 . . . . . . . . . . . 2 36 Impact 1 | . . . . 1 . . . . . . . . . . . . . Kinetic 35 | . . 1 . . . . . . . . . . . . . 2 32 Secondary 4 | . . . . . . . . . . . . . . . . . 4 Self-Inflicted Damage 662 | . . . . . . 31 . . . . . . . . . 501 130 Shots 56 | . . . . . . 1 . . . . . . . . . 40 15 Rammed 1 | . . . . . . . . . . . . . . . . . 1 Targets Rammed 1 | . . . . . . . . . . . . . . . . . 1 Kicked . | . . . . . . . . . . . . . . . . . . Crushed . | . . . . . . . . . . . . . . . . . . Highest Temperature 450 | . . 242 . 237 236 . . . . 151 152 112 251 30 189 450 310 Average Temperature 82 | . . 109 . 64 84 . . . . 69 52 66 94 15 37 109 71 Received Heat Transfer 2325 | . 33 195 . 129 90 . 63 . 27 9 9 . 749 . 27 174 820 Effects 2 | . . . . . . . . . . . . . . . . 2 . Shutdowns 1 | . . . . . . . . . . . . . . . . 1 . Damage (minor) 1 | . . . . . . . . . . . . . . . . 1 . Siege Activations 2 | . . . . . . . . . . . . . . . . . 2 Total Turns 53 | . . . . . . . . . . . . . . . . . 53 Longest Duration 42 | . . . . . . . . . . . . . . . . . 42 Martial Activations . | . . . . . . . . . . . . . . . . . . Shielding Activations . | . . . . . . . . . . . . . . . . . . Robots Disrupted 2 | . . 1 . . . . . . . . . . . . 1 . . Combat Hostiles 2 | . . 1 . . . . . . . . . . . . 1 . . Robots Corrupted 25 | . . . . 1 . . . . . . . . . . 3 16 5 Combat Hostiles 24 | . . . . . . . . . . . . . . . 3 16 5 Parts Fried 61 | . . . . 1 . . . . . . . . . . 8 39 13 Impact Corruptions 3 | . . . . 3 . . . . . . . . . . . . . Robots Melted 3 | . . . . . . . . . 1 . . . . . 1 1 . Combat Hostiles 2 | . . . . . . . . . 1 . . . . . 1 . . Parts Melted 32 | . . 1 . 2 2 . . . 3 1 . . 2 4 3 14 . Heat Transferred 5762 | . . 272 . 1033 761 187 450 . 587 . . . . 472 864 766 370 Parts Sabotaged . | . . . . . . . . . . . . . . . . . . Parts Stolen . | . . . . . . . . . . . . . . . . . . Parts Stripped . | . . . . . . . . . . . . . . . . . . Power Chain Reactions 5 | . . . . . . . . . . . . . . . . 2 3 Alert | -11 -10 -10 -8 -6 -5 -5 -5 -5 -4 -4 -4 -4 -4 -3 -3 -3 -2 ------- Run | Yrd Mat Sub Scr Fac Fac Upp Upp Zhi Pro Fac Upp Upp War Pro Res Qua Res Maximum Alert Level 3 | . . . . . 1 . . . . 1 . . . . 1 2 3 Low Security (%) 39 | 100 100 . . 100 90 . . . . 88 . . . . 94 8 . Level 1 10 | . . . . . 9 . . . . 11 . . . . 5 13 18 Level 2 45 | . . . . . . . . . . . . . . . . 78 22 Level 3 4 | . . . . . . . . . . . . . . . . . 59 Level 4 . | . . . . . . . . . . . . . . . . . . Level 5 . | . . . . . . . . . . . . . . . . . . High Security . | . . . . . . . . . . . . . . . . . . Max Security . | . . . . . . . . . . . . . . . . . . Peak Influence 1082 | . 72 . . 179 276 . . . . 225 . . . . 215 570 1082 Initial 301 | . . . . . 85 . . . . . . . . . 16 90 301 Average 335 | . 18 . . 73 82 . . . . 101 . . . . 106 444 747 Influence Increases 7433 | . 162 90 . 527 529 450 196 . 210 408 262 118 1025 55 543 1537 1321 Destroy 0b10 Robot/C 4260 | . 100 60 . 200 200 260 120 . 140 140 180 80 860 40 340 840 700 Destroy 0b10 Robot/NC 220 | . 10 . . 35 10 . . . . 10 . . 5 . 20 45 85 Destroy Leader 726 | . 22 . . 76 54 20 10 . 10 42 20 10 . 10 92 218 142 Allied During Kill 969 | . . . . 68 95 170 66 . 60 109 62 28 160 5 43 57 46 Successful Hack 41 | . . . . . 14 . . . . 7 . . . . 6 14 . Disable Machine 525 | . . . . 120 60 . . . . 30 . . . . 30 240 45 Destroy Structure 557 | . . . . 28 96 . . . . 70 . . . . 12 108 243 Partial Spotted 15 | . . . . . . . . . . . . . . . . 15 . Lose Combat Pursuer 120 | . 30 30 . . . . . . . . . . . . . . 60 Influence Decreases 6627 | . 125 107 20 352 448 365 246 291 210 199 440 149 316 739 406 1162 1052 Entered New Map 1691 | . . 18 20 . 90 95 66 291 . . 78 7 . 709 9 72 236 Time Decay 3866 | . 125 89 . 322 308 270 180 . 190 199 362 142 166 30 357 770 356 Lost Part 690 | . . . . 30 30 . . . . . . . 110 . 40 300 180 Lost Ally 380 | . . . . . 20 . . . 20 . . . 40 . . 20 280 Squads Dispatched 24 | . . . . 2 4 . . . . 1 . . . . 3 5 9 Investigation 6 | . . . . . 1 . . . . 1 . . . . 1 1 2 Extermination 11 | . . . . 2 2 . . . . . . . . . 2 3 2 Reinforcement 6 | . . . . . 1 . . . . . . . . . . 1 4 Assault 1 | . . . . . . . . . . . . . . . . . 1 Garrison . | . . . . . . . . . . . . . . . . . . Intercept . | . . . . . . . . . . . . . . . . . . Searches Triggered . | . . . . . . . . . . . . . . . . . . Construction Impeded . | . . . . . . . . . . . . . . . . . . Haulers Reinforced 2 | . . . . . . . . . . . . . . . . . 2 Active Scanning Responses . | . . . . . . . . . . . . . . . . . . Cargo Convoy Interrupts . | . . . . . . . . . . . . . . . . . . Stealth | -11 -10 -10 -8 -6 -5 -5 -5 -5 -4 -4 -4 -4 -4 -3 -3 -3 -2 --------- Run | Yrd Mat Sub Scr Fac Fac Upp Upp Zhi Pro Fac Upp Upp War Pro Res Qua Res Distress Signals 4 | . 1 . . 1 . . . . . . . . . . . 1 1 Communications Jammed 114 | . . . . 20 . . . . . . . . 39 . . 36 19 Distress Signals 114 | . . . . 20 . . . . . . . . 39 . . 36 19 Times Spotted 299 | . 15 17 . 13 9 11 6 . 7 6 6 3 58 2 18 57 71 Peak Tracking Total 26 | . 3 2 . 3 3 9 3 . 5 2 2 2 13 2 4 15 26 Tactical Retreats 6 | . 1 1 . . . . . . . . . . . . . . 4 Traps | -11 -10 -10 -8 -6 -5 -5 -5 -5 -4 -4 -4 -4 -4 -3 -3 -3 -2 ------- Run | Yrd Mat Sub Scr Fac Fac Upp Upp Zhi Pro Fac Upp Upp War Pro Res Qua Res Traps Triggered 10 | . 1 . . 2 . . . . . 1 . . . . 1 4 1 Indirectly 1 | . . . . . . . . . . . . . . . . . 1 Trap Hack Attempts . | . . . . . . . . . . . . . . . . . . Triggered . | . . . . . . . . . . . . . . . . . . Disarmed . | . . . . . . . . . . . . . . . . . . Reprogrammed . | . . . . . . . . . . . . . . . . . . Reused . | . . . . . . . . . . . . . . . . . . Traps Extracted . | . . . . . . . . . . . . . . . . . . Installed . | . . . . . . . . . . . . . . . . . . Triggered . | . . . . . . . . . . . . . . . . . . Machines | -11 -10 -10 -8 -6 -5 -5 -5 -5 -4 -4 -4 -4 -4 -3 -3 -3 -2 ---------- Run | Yrd Mat Sub Scr Fac Fac Upp Upp Zhi Pro Fac Upp Upp War Pro Res Qua Res Machines Disabled 41 | . . 1 . 8 4 2 . . . 2 . . 2 . 2 17 3 Max in Single Turn 4 | . . 1 . 2 4 1 . . . 1 . . 1 . 1 1 1 Machines Repaired . | . . . . . . . . . . . . . . . . . . Machines Dismantled 1 | . . . . . . . . . . . . . . . . 1 . Machines Sabotaged . | . . . . . . . . . . . . . . . . . . Overloaded Fab Kills . | . . . . . . . . . . . . . . . . . . Hacking | -11 -10 -10 -8 -6 -5 -5 -5 -5 -4 -4 -4 -4 -4 -3 -3 -3 -2 --------- Run | Yrd Mat Sub Scr Fac Fac Upp Upp Zhi Pro Fac Upp Upp War Pro Res Qua Res Machines Accessed 29 | . 1 2 3 . 4 . . 4 . 3 . 1 1 . 2 6 2 Terminals 15 | . 1 . . . 2 . . . . 2 . . . . 2 6 2 Fabricators . | . . . . . . . . . . . . . . . . . . Repair Stations 1 | . . . . . 1 . . . . . . . . . . . . Recycling Units 2 | . . . . . 1 . . . . 1 . . . . . . . Scanalyzers . | . . . . . . . . . . . . . . . . . . Garrison Access . | . . . . . . . . . . . . . . . . . . Total Hacks 69 | . 2 2 13 . 7 . . 17 . 3 . 1 5 . 4 10 5 Successful 49 | . . 2 13 . 5 . . 17 . 2 . 1 5 . 1 3 . Failed 20 | . 2 . . . 2 . . . . 1 . . . . 3 7 5 Catastrophic 7 | . 1 . . . 1 . . . . . . . . . 1 2 2 Database Lockouts . | . . . . . . . . . . . . . . . . . . Manual 8 | . 2 . 1 . 2 . . . . 2 . . . . . 1 . Terminals 27 | . 2 . . . 4 . . . . 2 . . . . 4 10 5 Fabricators . | . . . . . . . . . . . . . . . . . . Repair Stations 2 | . . . . . 2 . . . . . . . . . . . . Recycling Units 2 | . . . . . 1 . . . . 1 . . . . . . . Scanalyzers . | . . . . . . . . . . . . . . . . . . Garrison Access . | . . . . . . . . . . . . . . . . . . Terminal Hacks 45 | . . 2 13 . 2 . . 17 . 1 . 1 5 . 1 3 . Record 9 | . . . 4 . . . . 5 . . . . . . . . . Part Schematic 4 | . . . . . . . . 4 . . . . . . . . . Robot Analysis 12 | . . . 8 . . . . 4 . . . . . . . . . Prototype ID Bank 9 | . . . . . . . . 4 . . . . 5 . . . . Open Door 3 | . . 1 . . . . . . . . . 1 . . 1 . . Level Access Points 1 | . . . . . 1 . . . . . . . . . . . . Branch Access Points 2 | . . . . . 1 . . . . 1 . . . . . . . Alert Level 2 | . . . . . . . . . . . . . . . . 2 . Zone Layout 1 | . . . . . . . . . . . . . . . . 1 . Proto ID Catalog 2 | . . 1 1 . . . . . . . . . . . . . . Fabricator Hacks . | . . . . . . . . . . . . . . . . . . Repair Station Hacks 2 | . . . . . 2 . . . . . . . . . . . . Scan Component 1 | . . . . . 1 . . . . . . . . . . . . Repair 1 | . . . . . 1 . . . . . . . . . . . . Recycling Unit Hacks . | . . . . . . . . . . . . . . . . . . Scanalyzer . | . . . . . . . . . . . . . . . . . . Garrison Access Hacks . | . . . . . . . . . . . . . . . . . . Unauthorized Hacks 2 | . . . . . 1 . . . . 1 . . . . . . . Terminals . | . . . . . . . . . . . . . . . . . . Fabricators . | . . . . . . . . . . . . . . . . . . Repair Stations . | . . . . . . . . . . . . . . . . . . Recycling Units 2 | . . . . . 1 . . . . 1 . . . . . . . Scrapoids 2 | . . . . . 1 . . . . 1 . . . . . . . Scanalyzers . | . . . . . . . . . . . . . . . . . . Garrison Access . | . . . . . . . . . . . . . . . . . . Data Cores Recovered 2 | . . . . . . . . . . 1 . . . . . 1 . Used 1 | . . . . . . . . . . 1 . . . . . . . Hacking Detections 12 | . 1 . . . 2 . . . . 1 . . . . 1 5 2 Full Trace Events 5 | . 1 . . . . . . . . . . . . . 1 1 2 Feedback Events . | . . . . . . . . . . . . . . . . . . Feedback Blocked . | . . . . . . . . . . . . . . . . . . Robot Schematics Acquired . | . . . . . . . . . . . . . . . . . . Robots Built . | . . . . . . . . . . . . . . . . . . Authchips . | . . . . . . . . . . . . . . . . . . Time . | . . . . . . . . . . . . . . . . . . Total Robot Build Rating . | . . . . . . . . . . . . . . . . . . Part Schematics Acquired 4 | . . . . . . . . 4 . . . . . . . . . Parts Built . | . . . . . . . . . . . . . . . . . . Authchips . | . . . . . . . . . . . . . . . . . . Time . | . . . . . . . . . . . . . . . . . . Total Part Build Rating . | . . . . . . . . . . . . . . . . . . Part Studies Acquired . | . . . . . . . . . . . . . . . . . . Parts Repaired 1 | . . . . . 1 . . . . . . . . . . . . Time 38 | . . . . . 38 . . . . . . . . . . . . Parts Recycled . | . . . . . . . . . . . . . . . . . . Recycled Matter . | . . . . . . . . . . . . . . . . . . Retrieved Matter . | . . . . . . . . . . . . . . . . . . Retrieved Components . | . . . . . . . . . . . . . . . . . . Parts Scanalyzed . | . . . . . . . . . . . . . . . . . . Part Schematics Acquired . | . . . . . . . . . . . . . . . . . . Parts Damaged . | . . . . . . . . . . . . . . . . . . Bothacking | -11 -10 -10 -8 -6 -5 -5 -5 -5 -4 -4 -4 -4 -4 -3 -3 -3 -2 ------------ Run | Yrd Mat Sub Scr Fac Fac Upp Upp Zhi Pro Fac Upp Upp War Pro Res Qua Res Used RIF Installer . | . . . . . . . . . . . . . . . . . . Robots Hacked . | . . . . . . . . . . . . . . . . . . Non-combat . | . . . . . . . . . . . . . . . . . . Combat . | . . . . . . . . . . . . . . . . . . Robot Hacks Applied . | . . . . . . . . . . . . . . . . . . Relay Couplers Released . | . . . . . . . . . . . . . . . . . . Fabnet Peak Effective % . | . . . . . . . . . . . . . . . . . . Robots Rewired 1 | . . 1 . . . . . . . . . . . . . . . Allies Hacked 2 | . . . . . . . . . . 1 . . 1 . . . . Hacks Repelled . | . . . . . . . . . . . . . . . . . . Allies | -11 -10 -10 -8 -6 -5 -5 -5 -5 -4 -4 -4 -4 -4 -3 -3 -3 -2 -------- Run | Yrd Mat Sub Scr Fac Fac Upp Upp Zhi Pro Fac Upp Upp War Pro Res Qua Res Total Allies 31 | . . 1 2 . 5 . . . . 5 2 . 1 . . 2 13 Largest Group 8 | . . 1 2 2 7 6 5 5 5 8 5 3 3 1 1 1 4 Highest-Rated Group 408 | . . 19 134 134 364 317 267 267 267 408 267 192 195 75 75 115 108 Highest-Rated Ally 115 | . . 19 71 71 63 63 63 63 63 63 75 75 77 75 75 115 108 Initial UFD Resources 28 | . . . . 22 26 23 23 23 25 25 22 22 22 24 24 24 28 Total Orders 41 | . . . 5 2 . 6 . 2 3 2 9 . 2 . 4 6 . STAY 22 | . . . 3 1 . 3 . 2 1 1 5 . 1 . 2 3 . ROAM 1 | . . . . . . . . . . . 1 . . . . . . FOLLOW 18 | . . . 2 1 . 3 . . 2 1 3 . 1 . 2 3 . Ally Attacks 429 | . . 2 . 48 40 46 19 . 22 37 21 5 70 5 26 45 43 Total Damage 15093 | . . 45 . 1953 1414 939 374 . 707 910 899 99 3220 235 1007 1906 1385 Kills 94 | . . . . 9 11 5 2 . 4 6 6 2 19 1 7 14 8 Allies Corrupted 2 | . . . . . . . . . . . . . 1 . . . 1 Allies Melted . | . . . . . . . . . . . . . . . . . . Intel | -11 -10 -10 -8 -6 -5 -5 -5 -5 -4 -4 -4 -4 -4 -3 -3 -3 -2 ------- Run | Yrd Mat Sub Scr Fac Fac Upp Upp Zhi Pro Fac Upp Upp War Pro Res Qua Res Active Infowar (turns) 13663 | . . . 1 929 749 590 372 239 558 436 827 426 842 235 920 5798 741 Optics 12740 | . . . . 7 749 590 372 239 558 436 827 426 842 235 920 5798 741 IFF 1531 | . . . . 547 . . . . . . . . . . 915 69 . Structural 3209 | . . . 1 647 749 590 372 225 558 67 . . . . . . . Jamming 7966 | . . . . 339 421 . . . . 368 827 426 751 . 505 3588 741 Robot Analysis Total 12 | . . . 8 . . . . 4 . . . . . . . . . Derelict Logs Recovered 11 | . . 1 4 . . . 3 . 1 . . 2 . . . . . Drone Launches . | . . . . . . . . . . . . . . . . . . Drone Recoveries . | . . . . . . . . . . . . . . . . . . Exploration | -11 -10 -10 -8 -6 -5 -5 -5 -5 -4 -4 -4 -4 -4 -3 -3 -3 -2 ------------- Run | Yrd Mat Sub Scr Fac Fac Upp Upp Zhi Pro Fac Upp Upp War Pro Res Qua Res Turns Passed 22912 | 76 598 3491 5016 935 749 590 372 239 558 436 827 426 842 235 920 5798 804 Spaces Moved 13709 | 43 325 1862 3214 536 363 463 299 174 437 324 591 331 559 204 629 2944 411 Core 137 | 2 . 9 . . . . . . . . . . . . . 1 125 Treads 2780 | 41 325 340 . . . . . . . . . . . . . 1788 286 Legs 10350 | . . 1513 3214 135 322 463 299 174 437 324 591 331 559 204 629 1155 . Wheels 442 | . . . . 401 41 . . . . . . . . . . . . Hover . | . . . . . . . . . . . . . . . . . . Flight . | . . . . . . . . . . . . . . . . . . Fastest Speed 50 | 50 160 140 130 120 120 120 120 120 120 120 120 120 104 106 110 108 50 Average Speed 146 | 154 160 168 150 154 170 120 120 120 120 120 120 120 115 107 113 164 127 Slowest Speed 1850 | 160 160 550 210 200 260 120 120 120 120 120 120 120 120 111 116 1850 225 Overloaded Moves . | . . . . . . . . . . . . . . . . . . Propulsion Burnouts . | . . . . . . . . . . . . . . . . . . Robots Hopped . | . . . . . . . . . . . . . . . . . . Potential Cave-ins 15 | . . . . . . . . . . . . . . . . 11 4 Cave-ins Triggered 1 | . . . . . . . . . . . . . . . . 1 . Teleports 1 | . . . . . . . . . . . . . . . . 1 . Exploration Rate (%) 47 | 4 39 84 80 18 13 73 50 63 55 11 57 52 70 49 17 96 17 Regions Visited 17 Branch Regions 11 Pre-discovered Areas 5 | . . . 2 . . . . 3 . . . . . . . . . Known Exits Taken 5 | . . . . . 1 . . . 1 1 . 1 . 1 . . . Unknown Exits Taken 12 | 1 1 1 1 1 . 1 1 1 . . 1 . 1 . 1 1 . Scrap Searched 24 | . . 10 4 . . 1 . . 5 . 1 2 . 1 . . . Spaces Dug 86 | . . 1 . 2 34 18 . . . 8 3 2 2 . 3 11 2 Terrain Destroyed 480 | . . 9 . 7 44 43 5 . 5 29 64 11 144 . 4 63 52 Melee 2 | . . . . 1 . . . . . . . . . . . 1 . Projectile 309 | . . 1 . 6 14 12 5 . 5 23 64 11 65 . 4 50 49 AOE 169 | . . 8 . . 30 31 . . . 6 . . 79 . . 12 3 Terrain Rammed . | . . . . . . . . . . . . . . . . . . Walls Destroyed . | . . . . . . . . . . . . . . . . . . Machines Disabled . | . . . . . . . . . . . . . . . . . . Actions | -11 -10 -10 -8 -6 -5 -5 -5 -5 -4 -4 -4 -4 -4 -3 -3 -3 -2 --------- Run | Yrd Mat Sub Scr Fac Fac Upp Upp Zhi Pro Fac Upp Upp War Pro Res Qua Res Total 15707 | 50 358 2036 3394 609 466 483 302 205 463 364 704 358 719 212 754 3681 549 Wait 649 | . . 16 100 . 53 . . . 5 7 35 25 51 . 6 328 23 Move 13691 | 42 324 1861 3213 535 362 462 298 173 436 323 590 330 558 203 628 2942 411 Hop . | . . . . . . . . . . . . . . . . . . Pick Up 210 | 2 7 18 33 13 7 2 . 6 3 4 23 . 8 3 19 54 8 Fast Attach 137 | 6 . 3 5 12 9 1 . 8 2 4 2 . 19 . 9 54 3 Attach 93 | . 1 4 3 7 2 2 . 3 . 2 2 . 4 3 8 37 15 Detach 32 | . . . 2 1 . . . 1 . . 1 . . . . 23 4 Swap 106 | . 1 13 . 6 6 3 . 2 4 3 . . 6 . 18 37 7 Drop 248 | . 2 11 36 12 14 4 . 12 8 7 25 . 18 . 22 70 7 Fire 492 | . 23 101 2 11 13 9 4 . 5 14 25 3 53 3 44 115 67 Melee 10 | . . . . 4 . . . . . . . . . . . 3 3 Ram . | . . . . . . . . . . . . . . . . . . Kick . | . . . . . . . . . . . . . . . . . . Crush 1 | . . . . . . . . . . . . . . . . . 1 Escape Stasis 9 | . . . . 8 . . . . . . . . . . . 1 . Rewire 12 | . . 9 . . . . . . . . 1 . 2 . . . . Trap . | . . . . . . . . . . . . . . . . . . Miscellaneous 17 | . . . . . . . . . . . . . . . . 17 . Route ------- -11/Scrapyard -10/Materials (discovered 3 exits: [*Mat] / [*Min] / *Sub) -10/Subcaves (discovered 3 exits: *Mat x2 / *Scr) -8/Scraptown (discovered 2 exits: [*Fac x2]) -6/Factory -5/Factory (discovered 6 exits: Fac x4 / *Upp x2) -5/Upper Caves -5/Upper Caves -5/Zhirov -4/Proximity Caves -4/Factory (discovered 7 exits: Res x2 / *Upp x2 / Ext x2 / Arm) -4/Upper Caves -4/Upper Caves (discovered 2 exits: *Res / *War) -4/Warlord -3/Proximity Caves -3/Research -3/Quarantine -2/Research (discovered 1 exit: [*Acc]) History --------- Turn | Location | Event 9 | -11/Scrapyard | Discovered new exit (range 15) 77 | -11/Scrapyard | Entered Materials 144 | -10/Materials | Discovered new exit (range 13) 317 | -10/Materials | Build established: Mutant 376 | -10/Materials | Discovered new exit (range 15) 656 | -10/Materials | Discovered new exit (range 13) 675 | -10/Materials | Entered Subcaves 676 | -10/Subcaves | Approached by a straggling Scientist 979 | -10/Subcaves | Disturbed a concealed Subdweller 1593 | -10/Subcaves | Core integrity fell below 50% 1889 | -10/Subcaves | Identified exit to Materials 2145 | -10/Subcaves | Build established: Derelict-Mutant 2484 | -10/Subcaves | Disturbed a concealed Subdweller 2558 | -10/Subcaves | A swath of the cavern ceiling suddenly collapsed 3328 | -10/Subcaves | Discovered exit to Materials (range 8) 3438 | -10/Subcaves | Shifting Twisted Machinery released Sub. Machine Gun 3537 | -10/Subcaves | Ambushed by Subdweller buried in earth 3828 | -10/Subcaves | Visited 4L-MR0's lab 3850 | -10/Subcaves | Found Powered Cannon 3871 | -10/Subcaves | Build established: Scavenger-Mutant 4166 | -10/Subcaves | Entered Scraptown 4168 | -8/Scraptown | System corruption cleaned by C-Scrubber 4365 | -8/Scraptown | Visited UFD Registry 4365 | -8/Scraptown | Registered with UFD as "Electrocycle" 4422 | -8/Scraptown | Visited Science Guys 4503 | -8/Scraptown | Visited Botcube Research 4535 | -8/Scraptown | Visited Abandonware Association 4569 | -8/Scraptown | Learned abandonware demo "SHUTEYE.EXE" 4611 | -8/Scraptown | Visited Curators Association 4642 | -8/Scraptown | Visited Analyses Database 4690 | -8/Scraptown | Visited Scrapoid Research Area 4711 | -8/Scraptown | Visited DA-N13 Charitable Foundation 4753 | -8/Scraptown | Visited Junk Repository 4789 | -8/Scraptown | Visited Junk Cannon Lab 4823 | -8/Scraptown | Visited Chapter 10 4921 | -8/Scraptown | Found DCF Scrap (29 items) 5100 | -8/Scraptown | Received an X-ray algorithm 5140 | -8/Scraptown | Ran an X-ray algorithm 5371 | -8/Scraptown | Scanned Subdweller tech in exchange for log data 5375 | -8/Scraptown | Learned location of Testing (-2) 5377 | -8/Scraptown | Learned Research stockpile data 5379 | -8/Scraptown | Learned location of Quarantine (-3) 5381 | -8/Scraptown | Learned Factory security intel 5411 | -8/Scraptown | Discovered new exit (range 11) 5687 | -8/Scraptown | Found Botcube 5779 | -8/Scraptown | Delivered Scrap Shield to a Scientist 6056 | -8/Scraptown | Visited Awakened 6074 | -8/Scraptown | Visited Comm Corps 6095 | -8/Scraptown | Visited Symbiants 6115 | -8/Scraptown | Visited Cyclists 6123 | -8/Scraptown | Visited Red Mages 6243 | -8/Scraptown | Build established: Mutant 6889 | -8/Scraptown | Found Scrap Suit 7139 | -8/Scraptown | Botcube activated 7161 | -8/Scraptown | Botcube completed mutation into legged form, armed with 1 cannon. 7733 | -8/Scraptown | Found Scrap Suit 8351 | -8/Scraptown | Found Scrap Suit 8407 | -8/Scraptown | Botcube activated 8427 | -8/Scraptown | Botcube completed mutation into legged form, armed with 2 cannons. 8568 | -8/Scraptown | Attached CPS modules to *botsuit. 8578 | -8/Scraptown | Attached CPS modules to *alpha 5. 9006 | -8/Scraptown | Discovered new exit (range 5) 9114 | -8/Scraptown | Met Optimus 9114 | -8/Scraptown | Accepted into 0bPrime 9182 | -8/Scraptown | Entered Factory 9182 | -6/Factory | Accompanied by 2 allies 9182 | -6/Factory | Evolved 8 slots: Propulsion x2, Utility x4, Weapon x2 9491 | -6/Factory | Build established: Derelict-Mutant 10052 | -6/Factory | Spotted B-75 Beast 10053 | -6/Factory | Discovered new exit (range 13) 10070 | -6/Factory | Destroyed B-75 Beast 10117 | -6/Factory | Entered another Factory area 10117 | -5/Factory | Accompanied by 2 allies 10117 | -5/Factory | Evolved 2 slots: Propulsion x1, Utility x1 10131 | -5/Factory | Build established: Scavenger-Tank 10333 | -5/Factory | Identified exit to Factory 10547 | -5/Factory | Identified exit to Upper Caves 10654 | -5/Factory | Repaired Carbon-fiber Leg 10774 | -5/Factory | Scrapoid reinforcements arrived 10866 | -5/Factory | Entered Upper Caves 10866 | -5/Upper Caves | Accompanied by 6 allies 10868 | -5/Upper Caves | UFD Scientist delivered a prototype 10869 | -5/Upper Caves | Attached CPS modules to 05F04-D. 10872 | -5/Upper Caves | Attached CPS modules to 05F03-D. 10877 | -5/Upper Caves | Found Prototype Protection 10988 | -5/Upper Caves | Spotted B-75 Beast 10994 | -5/Upper Caves | Allies destroyed B-75 Beast 11119 | -5/Upper Caves | Attracted the attention of an 0b10 outpost 11146 | -5/Upper Caves | Destroyed 8 combat bots 11148 | -5/Upper Caves | Build established: Scavenger-Gunner 11172 | -5/Upper Caves | Found Scrap Suit 11384 | -5/Upper Caves | Discovered new exit (range 14) 11456 | -5/Upper Caves | Entered another Upper Caves area 11456 | -5/Upper Caves | Accompanied by 5 allies 11552 | -5/Upper Caves | Learned location of 1 exit from Factory 11565 | -5/Upper Caves | Learned location of 1 exit from Factory 11651 | -5/Upper Caves | Discovered new exit (range 6) 11653 | -5/Upper Caves | Attracted the attention of an 0b10 checkpoint 11724 | -5/Upper Caves | Learned Factory stockpile data 11828 | -5/Upper Caves | Entered Zhirov 11828 | -5/Zhirov | Accompanied by 5 allies 11828 | -5/Zhirov | Discovered new exit (range 3) 11852 | -5/Zhirov | Met Zhirov 11885 | -5/Zhirov | Found Alien Artifact 11885 | -5/Zhirov | Identified Integrated Dissipator 11885 | -5/Zhirov | Installed Integrated Dissipator, increased core heat dissipation (+20) 11956 | -5/Zhirov | Found Alien Artifact 11999 | -5/Zhirov | Learned location of Command (-1) 12023 | -5/Zhirov | Zhirov requested help retrieving the SGEMP Prototype 12067 | -5/Zhirov | Entered Proximity Caves 12067 | -4/Proximity Caves | Accompanied by 5 allies 12115 | -4/Proximity Caves | Attracted the attention of an 0b10 checkpoint 12155 | -4/Proximity Caves | Found Scrap Suit 12427 | -4/Proximity Caves | Build established: Scavenger-Scrapper 12476 | -4/Proximity Caves | Learned Research emergency access door positions 12510 | -4/Proximity Caves | Discovered exit to Factory (range 17) 12625 | -4/Proximity Caves | Entered Factory 12625 | -4/Factory | Accompanied by 3 allies 12625 | -4/Factory | Evolved 2 slots: Power x1, Propulsion x1 12626 | -4/Factory | Identified exit to Research 12751 | -4/Factory | Identified exit to Upper Caves 12751 | -4/Factory | Identified exit to Extension 12751 | -4/Factory | Identified exit to Armory 12790 | -4/Factory | Scrapoid reinforcements arrived 12968 | -4/Factory | Found Scrap Suit 13061 | -4/Factory | Entered Upper Caves 13061 | -4/Upper Caves | Accompanied by 5 allies 13083 | -4/Upper Caves | P-70 Sage assimilated allied 04F07-D 13128 | -4/Upper Caves | Murdered *alpha 5 13128 | -4/Upper Caves | Destroyed *alpha 5 13191 | -4/Upper Caves | Attached CPS modules to 04F10-D. 13244 | -4/Upper Caves | Botcube activated 13264 | -4/Upper Caves | Botcube completed mutation into legged form, armed with 1 gun, 1 cannon. 13339 | -4/Upper Caves | Murdered *botsuit 13339 | -4/Upper Caves | Destroyed *botsuit 13343 | -4/Upper Caves | Found Botcube 13493 | -4/Upper Caves | Found Scrap Suit 13502 | -4/Upper Caves | Build established: Scavenger-Gunner 13591 | -4/Upper Caves | Botcube activated 13607 | -4/Upper Caves | Botcube completed mutation into wheeled form, armed with 2 guns. 13623 | -4/Upper Caves | Found Scrap Suit 13865 | -4/Upper Caves | Discovered new exit (range 15) 13888 | -4/Upper Caves | Entered another Upper Caves area 13888 | -4/Upper Caves | Accompanied by 3 allies 13891 | -4/Upper Caves | Discovered exit to Research (range 11) 14080 | -4/Upper Caves | Encountered a Warlord checkpoint 14154 | -4/Upper Caves | Identified exit to Warlord 14174 | -4/Upper Caves | Build established: Scavenger-Scrapper 14260 | -4/Upper Caves | Learned Research trap positions 14314 | -4/Upper Caves | Entered Warlord 14314 | -4/Warlord | Accompanied by 3 allies 14575 | -4/Warlord | Rebuked by Warlord 14589 | -4/Warlord | Warlord's base attacked by MAIN.C 14748 | -4/Warlord | Found Prototype Reactor 14748 | -4/Warlord | Identified Vortex Chain Reactor 14758 | -4/Warlord | Found Prototype Device 14758 | -4/Warlord | Identified System Purifier 14761 | -4/Warlord | Found Prototype Processor 14761 | -4/Warlord | Identified Exp. Armor Integrity Analyzer 14928 | -4/Warlord | Spotted Striker 14939 | -4/Warlord | Warlord forces counterattacked 14984 | -4/Warlord | Spotted Striker 14987 | -4/Warlord | Spotted Executioner 15000 | -4/Warlord | Allies destroyed Executioner 15006 | -4/Warlord | Destroyed Striker 15011 | -4/Warlord | Botcube activated 15027 | -4/Warlord | Botcube completed mutation into flying form, armed with 2 guns. 15032 | -4/Warlord | Murdered Mutated Botcube 15032 | -4/Warlord | Destroyed Mutated Botcube 15035 | -4/Warlord | Lost 5 allies 15037 | -4/Warlord | Found Botcube 15041 | -4/Warlord | Spotted Striker 15065 | -4/Warlord | Discovered new exit (range 20) 15076 | -4/Warlord | Lost 3 allies 15091 | -4/Warlord | Spotted Striker 15091 | -4/Warlord | Spotted Striker 15111 | -4/Warlord | Allies destroyed Striker 15118 | -4/Warlord | Destroyed 7 combat bots 15139 | -4/Warlord | Found Quantum Capacitor 15141 | -4/Warlord | Lost 9 parts (2n2u5w) 15156 | -4/Warlord | Entered Proximity Caves 15156 | -3/Proximity Caves | Accompanied by 1 ally 15365 | -3/Proximity Caves | Build established: Scavenger-Gunner 15379 | -3/Proximity Caves | Discovered exit to Research (range 5) 15391 | -3/Proximity Caves | Entered Research 15391 | -3/Research | Accompanied by 1 ally 15391 | -3/Research | Evolved 2 slots: Utility x2 15392 | -3/Research | Loaded intel: 109 trap records 15709 | -3/Research | Lost 5 parts (2n2u1w) 16299 | -3/Research | Discovered new exit (range 9) 16311 | -3/Research | Entered Quarantine 16311 | -3/Quarantine | Accompanied by 1 ally 16376 | -3/Quarantine | Spotted Alpha 7 16396 | -3/Quarantine | Allies destroyed Alpha 7 16461 | -3/Quarantine | Murdered *alpha 6 16461 | -3/Quarantine | Destroyed *alpha 6 16473 | -3/Quarantine | Botcube activated 16493 | -3/Quarantine | Botcube completed mutation into legged form, armed with 2 guns. 16544 | -3/Quarantine | Found Alien Launcher 16641 | -3/Quarantine | Attached CPS modules to *alpha 7. 16648 | -3/Quarantine | System corruption reached 10% 16652 | -3/Quarantine | Lost 3 parts (1n1u1w) 16709 | -3/Quarantine | Found Alien Artifact 16815 | -3/Quarantine | Found Unknown Launcher 16815 | -3/Quarantine | Identified Gamma Bomb Array 17149 | -3/Quarantine | Found Alien Slashing Weapon 17331 | -3/Quarantine | Cryocooling Duct disabled 17346 | -3/Quarantine | Ambient heat levels rising (+20) 17346 | -3/Quarantine | Non-combat units ordered to evacuate 17591 | -3/Quarantine | Discovered new exit (range 18) 17716 | -3/Quarantine | Cryocooling Duct disabled 17731 | -3/Quarantine | Ambient heat levels rising (+20) 17731 | -3/Quarantine | Combat units ordered to evacuate 17831 | -3/Quarantine | Quarantine Guard activated 17841 | -3/Quarantine | Spotted Quarantine Guard 17842 | -3/Quarantine | Spotted Quarantine Guard 17845 | -3/Quarantine | Spotted Quarantine Guard 17852 | -3/Quarantine | Destroyed Quarantine Guard 17852 | -3/Quarantine | Destroyed Quarantine Guard 17853 | -3/Quarantine | Destroyed Quarantine Guard 17856 | -3/Quarantine | Spotted Quarantine Guard 17859 | -3/Quarantine | Spotted Quarantine Guard 17861 | -3/Quarantine | Spotted Quarantine Guard 17864 | -3/Quarantine | Spotted Quarantine Guard 17865 | -3/Quarantine | Identified Transdimensional Reconstructor 17865 | -3/Quarantine | Warped through subspace 17894 | -3/Quarantine | Lost 6 parts (3n1u2w) 17993 | -3/Quarantine | Destroyed Quarantine Guard 18019 | -3/Quarantine | System corruption reached 30% 18095 | -3/Quarantine | Destroyed Quarantine Guard 18282 | -3/Quarantine | Destroyed Quarantine Guard 18289 | -3/Quarantine | Spotted Quarantine Guard 18316 | -3/Quarantine | Destroyed Quarantine Guard 18336 | -3/Quarantine | Lost 3 parts (1n2w) 18694 | -3/Quarantine | Spotted Quarantine Guard 18711 | -3/Quarantine | Destroyed Quarantine Guard 18729 | -3/Quarantine | Destroyed Quarantine Guard 18759 | -3/Quarantine | Lost 5 parts (2p1n2w) 18812 | -3/Quarantine | Spotted Quarantine Guard 18816 | -3/Quarantine | Identified Sigix Broadsword 18827 | -3/Quarantine | Destroyed Quarantine Guard 18850 | -3/Quarantine | Lost 4 parts (1n3u) 18906 | -3/Quarantine | Spotted Quarantine Guard 18992 | -3/Quarantine | Core integrity fell below 50% 19022 | -3/Quarantine | Lost 3 parts (2p1w) 19023 | -3/Quarantine | Destroyed Quarantine Guard 19050 | -3/Quarantine | Build established: Scavenger-Mutant 19385 | -3/Quarantine | Spotted Quarantine Guard 19394 | -3/Quarantine | Destroyed Quarantine Guard 19708 | -3/Quarantine | Identified Core Reset Matrix 19708 | -3/Quarantine | Used Core Reset Matrix 19712 | -3/Quarantine | Detected hypermatrix surge 19712 | -3/Quarantine | Sensed 6 artifacts in vicinity 20472 | -3/Quarantine | Discovered new exit (range 10) 20775 | -3/Quarantine | Found Botcube 20905 | -3/Quarantine | Crushed by falling debris 21129 | -3/Quarantine | Botcube activated 21151 | -3/Quarantine | Botcube completed mutation into treaded form, armed with 2 cannons. 21186 | -3/Quarantine | Found Core Stripper 21246 | -3/Quarantine | Found Corrupted Prototype Processor 21246 | -3/Quarantine | Identified Exp. Target Analyzer 21395 | -3/Quarantine | Found Terrabomb 22109 | -3/Quarantine | Entered Research 22109 | -2/Research | Accompanied by 1 ally 22109 | -2/Research | Evolved 2 slots: Power x1, Utility x1 22382 | -2/Research | Build established: Scavenger-Tank 22465 | -2/Research | Found Botcube 22473 | -2/Research | Destroyed 7 combat bots 22696 | -2/Research | Lost 4 parts (2n2u) 22762 | -2/Research | Lost 3 allies 22850 | -2/Research | Released all parts (11) 22859 | -2/Research | First assault squad dispatched 22862 | -2/Research | Spotted B-90 Cyclops 22878 | -2/Research | Lost 8 parts (3p2n1u2w) 22878 | -2/Research | Core integrity fell below 50% 22896 | -2/Research | Emitted hypermatrix ping 22901 | -2/Research | Assembled emerged from beneath the floor 22902 | -2/Research | Core integrity fell below 20% 22903 | -2/Research | Used Terrabomb 22903 | -2/Research | Discovered new exit (range 16) 22906 | -2/Research | Assembled emerged from beneath the floor 22913 | -2/Research | Destroyed by Y-72 Warden with Quantum Rifle Last Messages --------------- 22904_ Penetrated by Slug. 22906_ Assembled emerge from beneath the floor. 22906_ Penetrated by Slug. 22906_ Slug penetrates Y-72 Warden. 22907_ Slug penetrates as-00163. 22907_ Penetrated by Slug. 22907_ Slug penetrates as-08553. 22907_ Slug penetrates G-73 Enforcer. 22908_ Terminal disabled. 22908_ Slug penetrates Terminal. 22908_ as-04101 destroyed. 22909_ Slug penetrates Y-72 Warden. 22909_ as-08553 destroyed. 22909_ Slug penetrates Earth. 22911_ as-86035 destroyed. 22911_ Slug penetrates Y-72 Warden. 22911_ as-95846 destroyed. 22911_ Slug penetrates L-61 Swordsman. 22911_ as-00163 destroyed. 22911_ as-99838 destroyed. Map ----- +----------------------------------------------------+ | ?????????????????????????????????????? | | ?????????????????????????????????????? | | ?????????????????????????????????????? | | ?????????????????????????????????????? | | ?????????????????????????????????????? | | ?????????????????????????????????????? | | ?????????????????????????????????????? | | ?????????????????????????????????????? | | ?????????????????????????????????????? | | ?????????????????????????????????????? | | ??????????????? ?????????????????????? | | ??????????????? ????????????#?####?? | | ??????????????# ; ????? ? " ?? | | ?????????????#; ;? ? ?"" ? | | ???????????## ; ; ?" # / "? | | ???????????# ; + """ """ "" | | ??????????## ; < ; "T """ G | | ??????????# ; ; """ !"" "" | | ?????????## ; ; "" """ " | | ?????????# ; ;;;; " " | | ????????## ; ; ; " " | | ????????# ; ; ;;;;;;;;;" """""""" | | ????????# ; ; ;;;;"""" | | ????????# ; ;;;;;;;;; | | ????????# ; g | | ????????# @; g | | ??????# # ; l | | ???????# ;;;;;;;;;;;g;; | | ???????# ; " " "%%;;;;"""" | | ???????## ; o % """"""" | | ????????# ;; %; | | ??????# ;Y %; | | ??????### ;; % ; | | ????????# ;;;;;;;;;;;;"" | | | | | | | | | | | | | | | | | | | | | | | | | | | | | | | | | +----------------------------------------------------+ Best States ------------- Heat Dissipation 175 Coolant Potential 120 Energy Generation 65 Energy Capacity 1170 Matter Stores 300 Matter Capacity 300 Sight Range 22 Terrain Scan Density 10 Jamming Range 16 Base Temperature (-) 200 Corruption Block 20 Armor Coverage 900 Utility Shielding 90 Evasion (%) 70 Targeting Accuracy 13 Target Analysis 10 Core Analysis 9 Armor Integrity Analysis 50 Recoil Reduction 6 Offensive Hacking 14 Item Schematics ----------------- None Robot Schematics ------------------ None Fabricated ------------ Nothing Repaired ---------- Carbon-fiber Leg | 31% | -5/Factory Studied --------- None Alien Tech Used ----------------- Integrated Dissipator Transdimensional Reconstructor Sigix Broadsword Core Reset Matrix Terrabomb Achievements -------------- Overclocked Challenges ------------ None Game ------ Seed ShiftShockFragment Manual? 0 Play Time 02:23:27 Cumulative 423.3 hours Start 2026.01.09 @ 17:19:53 End 2026.01.10 @ 14:01:44 Sessions 5 Manual Loads 0 Difficulty Rogue Special Mode None Game No. 381 Rogue 345 Adventurer 36 Explorer 0 Win Type - Total 16 Types 7/0/9/0/0/0/0/0/0/0 Lore% 72 Gallery% 85 Achievement% 64 Wizard Run 0 Options --------- Layout 0 ASCII 0 Keyboard 0 Movement Mouse Keybinds 0 Fullscreen 1 Font 18/SmallcapsGlow Map View 76x50 Zoom Use 0% Tactical HUD 1 Map Filters NONE Filters NONE Steam 1 RUN: 70e10ddc-99c9-49ea-9ab9-54ae10627d59